Workbook

Sheet Intro
A1: Multi, intro hold
E3: 1 | F3: 2 | G3: 3 | H3: 4 | I3: 5 | J3: 6 | K3: 7 | L3: 8 | M3: 9 | N3: 10 | O3: 11 | P3: 12 | Q3: 13 | R3: 14 | S3: 15 | T3: 16 | V3: Total | X3: Placering
A5: Danny Hansen - Thomas Hahn | E5: 14.35 | F5: 6.62 | G5: 8.23 | H5: 4.49 | I5: 5.28 | J5: 12.27 | K5: 6.17 | L5: 12.64 | M5: 10.26 | N5: 12.15 | O5: 12.66 | P5: 0.18 | Q5: 9.95 | R5: 11.18 | S5: 10.65 | T5: 2.46 | V5: =AVERAGE(E5:T5) -> 8.72125 | X5: 15
A6: Emil Jepsen - Dennis Bilde | E6: 15.83 | F6: 13.97 | G6: 14.57 | H6: 12.95 | I6: 6.34 | J6: 17.45 | K6: 15.8 | L6: 6.74 | M6: 9.96 | N6: 11.98 | O6: 11.56 | P6: 13.34 | Q6: 8.73 | R6: 14.02 | S6: 8.77 | T6: 12.13 | V6: =AVERAGE(E6:T6) -> 12.13375 | X6: 1
A8: Lars Peter Damgaard - Jørgen Pabst | E8: 11.36 | F8: 13.87 | G8: 11.77 | H8: 7.05 | I8: 5.46 | J8: 3.19 | K8: 13.26 | L8: 13.86 | M8: 9.89 | N8: 10.16 | O8: 8.53 | P8: 9.46 | Q8: 6.57 | R8: 15.43 | S8: 18.1 | T8: 10.73 | V8: =AVERAGE(E8:T8) -> 10.543125 | X8: 5
A9: Camilla Bo Krefeld - Johan Hammelev | E9: 9.66 | F9: 10.43 | G9: 5.43 | H9: 15.51 | I9: 10.45 | J9: 5.82 | K9: 13.94 | L9: 12.35 | M9: 8.91 | N9: 10.93 | O9: 16.05 | P9: 12.8 | Q9: 10.23 | R9: 6.5 | S9: 9.53 | T9: 5.34 | V9: =AVERAGE(E9:T9) -> 10.2425 | X9: 7
A11: Jesper Bechsgaard - Anders Handberg Sørensen | E11: 12.71 | F11: 6.75 | G11: 16.89 | H11: 12.91 | I11: 13.66 | J11: 7.73 | K11: 6.06 | L11: 6.14 | M11: 2.59 | N11: 5.06 | O11: 2.83 | P11: 2.13 | Q11: 15.61 | R11: 5.72 | S11: 6.05 | T11: 0.48 | V11: =AVERAGE(E11:T11) -> 7.7075 | X11: 16
A12: Tom Nørgaard - Trine Bilde - Peter Barsøe | E12: 3.47 | F12: 4.01 | G12: 8.15 | H12: 2.06 | I12: 14.72 | J12: 2.55 | K12: 6.74 | L12: 7.65 | M12: 13.82 | N12: 4.94 | O12: 12.01 | P12: 11.86 | Q12: 10.3 | R12: 15.33 | S12: 15.64 | T12: 10.07 | V12: =AVERAGE(E12:T12) -> 8.9575 | X12: 14
A14: Morten Stege - Nils Mønsted | E14: 7.28 | F14: 8.78 | G14: 3.92 | H14: 4.32 | I14: 6.03 | J14: 8.95 | K14: 13.83 | L14: 13.26 | M14: 10.11 | N14: 9.07 | O14: 17.17 | P14: 8.14 | Q14: 12.53 | R14: 14.42 | S14: 14.06 | T14: 2.76 | V14: =AVERAGE(E14:T14) -> 9.664375 | X14: 11
A15: Stig Andersen - Ricardo Mirasola | E15: 16.74 | F15: 7.62 | G15: 13.91 | H15: 11.09 | I15: 6.84 | J15: 10.2 | K15: 4.2 | L15: 7.36 | M15: 11.09 | N15: 9.84 | O15: 7.99 | P15: 17.87 | Q15: 12.1 | R15: 16.6 | S15: 11.15 | T15: 8.09 | V15: =AVERAGE(E15:T15) -> 10.793125 | X15: 3
A17: Jørgen Cilleborg Hansen - Steen Schou | E17: 12.72 | F17: 12.38 | G17: 13.73 | H17: 11.13 | I17: 9.91 | J17: 8.16 | K17: 12.87 | L17: 12.79 | M17: 10.04 | N17: 7.85 | O17: 3.95 | P17: 10.54 | Q17: 9.7 | R17: 14.28 | S17: 10.47 | T17: 9.27 | V17: =AVERAGE(E17:T17) -> 10.611875 | X17: 4
A18: Marlene Henneberg - J.O Henneberg | E18: 3.26 | F18: 11.22 | G18: 8.63 | H18: 15.5 | I18: 14.66 | J18: 17.23 | K18: 9.48 | L18: 10.31 | M18: 9.74 | N18: 8.02 | O18: 11.47 | P18: 7.2 | Q18: 4.39 | R18: 4.67 | S18: 1.9 | T18: 14.66 | V18: =AVERAGE(E18:T18) -> 9.52125 | X18: 13
A20: Øjvind Hulgaard - Jesper Gad | E20: 7.29 | F20: 15.99 | G20: 16.08 | H20: 8.91 | I20: 5.34 | J20: 11.84 | K20: 15.22 | L20: 13.46 | M20: 5.94 | N20: 5.56 | O20: 7.34 | P20: 6.66 | Q20: 9.77 | R20: 4.57 | S20: 11.23 | T20: 17.54 | V20: =AVERAGE(E20:T20) -> 10.17125 | X20: 8
A21: Niels Krøjgaard - Henrik Caspersen - H C Graversen | E21: 16.53 | F21: 13.25 | G21: 6.09 | H21: 15.68 | I21: 10.09 | J21: 2.77 | K21: 8.3 | L21: 8.53 | M21: 18.45 | N21: 6.06 | O21: 8.44 | P21: 19.82 | Q21: 13.43 | R21: 13.5 | S21: 9.35 | T21: 7.87 | V21: =AVERAGE(E21:T21) -> 11.135 | X21: 2
A23: H K Sørensen - Niels Henriksen | E23: 8.64 | F23: 9.57 | G23: 11.85 | H23: 7.09 | I23: 13.97 | J23: 9.8 | K23: 7.13 | L23: 9.69 | M23: 14.06 | N23: 13.94 | O23: 12.68 | P23: 13.32 | Q23: 10.05 | R23: 5.98 | S23: 5.94 | T23: 11.91 | V23: =AVERAGE(E23:T23) -> 10.35125 | X23: 6
A24: Morten Bilde - Dorte Cilleborg | E24: 10.34 | F24: 6.13 | G24: 3.11 | H24: 17.94 | I24: 13.16 | J24: 11.05 | K24: 10.52 | L24: 7.21 | M24: 1.55 | N24: 14.44 | O24: 9.92 | P24: 6.55 | Q24: 11.27 | R24: 8.82 | S24: 8.85 | T24: 17.24 | V24: =AVERAGE(E24:T24) -> 9.88125 | X24: 10
A26: Søren Caspersen - Emil Buus Thomsen | E26: 5.65 | F26: 6.03 | G26: 11.37 | H26: 8.87 | I26: 9.55 | J26: 16.81 | K26: 11.7 | L26: 6.54 | M26: 6.18 | N26: 14.94 | O26: 7.32 | P26: 13.45 | Q26: 7.47 | R26: 3.4 | S26: 4.36 | T26: 19.52 | V26: =AVERAGE(E26:T26) -> 9.5725 | X26: 12
A27: Peter Jepsen - Søren Cilleborg Bilde - Maika | E27: 4.17 | F27: 13.38 | G27: 6.27 | H27: 4.5 | I27: 14.54 | J27: 14.18 | K27: 4.78 | L27: 11.47 | M27: 17.41 | N27: 15.06 | O27: 10.08 | P27: 6.68 | Q27: 7.9 | R27: 5.58 | S27: 13.95 | T27: 9.93 | V27: =AVERAGE(E27:T27) -> 9.9925 | X27: 9

Sheet RR1
A1: Multi, RR1
E3: 1 | F3: 2 | G3: 3 | H3: 4 | I3: 5 | J3: 6 | K3: 7 | L3: 8 | M3: 9 | N3: 10 | O3: 11 | P3: 12 | Q3: 13 | R3: 14 | T3: Total | U3: Placering
A5: Morten Stege - Nils Mønsted | E5: 13.45 | F5: 2.16 | G5: 6.7 | H5: 15.41 | I5: 11.3 | J5: 4.67 | K5: 13.02 | L5: 15.07 | M5: 12.08 | N5: 8.05 | O5: 9.72 | P5: 10.62 | Q5: 7.22 | R5: 14.89 | T5: =AVERAGE(E5:R5) -> 10.31142857 | U5: 8
A6: Camilla Bo Krefeld - Johan Hammelev | E6: 14.97 | F6: 13.55 | G6: 11.65 | H6: 7.04 | I6: 7.35 | J6: 2.89 | K6: 13.11 | L6: 13.67 | M6: 6.76 | N6: 8.94 | O6: 6.68 | P6: 6.51 | Q6: 16.72 | R6: 10.48 | T6: =AVERAGE(E6:R6) -> 10.02285714 | U6: 9
A8: Øjvind Hulgaard - Jesper Gad | E8: 10.57 | F8: 11.03 | G8: 8.35 | H8: 4.59 | I8: 10.59 | J8: 4.5 | K8: 3.38 | L8: 13.2 | M8: 10.51 | N8: 3.79 | O8: 2.17 | P8: 13.84 | Q8: 9.73 | R8: 8.67 | T8: =AVERAGE(E8:R8) -> 8.208571429 | U8: 14
A9: Jesper Bechsgaard - Anders Handberg Sørensen | E9: 5.64 | F9: 7.74 | G9: 13.3 | H9: 12.96 | I9: 14.09 | J9: 5.82 | K9: 3.8 | L9: 7.57 | M9: 8.59 | N9: 10.83 | O9: 4.16 | P9: 1.2 | Q9: 7.03 | R9: 4.87 | T9: =AVERAGE(E9:R9) -> 7.685714286 | U9: 15
A11: H K Sørensen - Niels Henriksen | E11: 9.44 | F11: 13.32 | G11: 13.76 | H11: 10.82 | I11: 8.7 | J11: 17.11 | K11: 16.2 | L11: 6.8 | M11: 5.84 | N11: 6.7 | O11: 11.55 | P11: 6.6 | Q11: 4.51 | R11: 14.01 | T11: =AVERAGE(E11:R11) -> 10.38285714 | U11: 7
A12: Tom Nørgaard - Trine Bilde - Peter Barsøe | E12: 3.54 | F12: 7.97 | G12: 14.57 | H12: 10.96 | I12: 12.65 | J12: 15.33 | K12: 16.62 | L12: 12.43 | M12: 4.28 | N12: 12.08 | O12: 7.81 | P12: 14.68 | Q12: 8.21 | R12: 8.31 | T12: =AVERAGE(E12:R12) -> 10.67428571 | U12: 6
A14: Danny Hansen - Thomas Hahn | E14: 1.41 | F14: 3.49 | G14: 1.57 | H14: 1.98 | I14: 3.2 | J14: 7.83 | K14: 6.98 | L14: 6.33 | M14: 9.49 | N14: 9.17 | O14: 8.45 | P14: 5.32 | Q14: 3.63 | R14: 5.9 | T14: =AVERAGE(E14:R14) -> 5.339285714 | U14: 16
A15: Lars Peter Damgaard - Jørgen Pabst | E15: 10.72 | F15: 0.74 | G15: 8.25 | H15: 15.28 | I15: 8.14 | J15: 7.17 | K15: 6.89 | L15: 4.93 | M15: 11.41 | N15: 16.21 | O15: 12.19 | P15: 13.4 | Q15: 0.54 | R15: 3.38 | T15: =AVERAGE(E15:R15) -> 8.517857143 | U15: 13
A17: Emil Jepsen - Dennis Bilde | E17: 18.59 | F17: 19.26 | G17: 8.36 | H17: 9.5 | I17: 12.54 | J17: 11 | K17: 7.41 | L17: 14.48 | M17: 13.24 | N17: 11.95 | O17: 17.83 | P17: 18.8 | Q17: 15.49 | R17: 11.69 | T17: =AVERAGE(E17:R17) -> 13.58142857 | U17: 1
A18: Peter Jepsen - Søren Cilleborg Bilde - Maika | E18: 9.28 | F18: 16.51 | G18: 7.45 | H18: 4.71 | I18: 8.07 | J18: 8.58 | K18: 8.7 | L18: 9.4 | M18: 7.92 | N18: 11.06 | O18: 15.84 | P18: 6.16 | Q18: 11.79 | R18: 5.99 | T18: =AVERAGE(E18:R18) -> 9.39 | U18: 11
A20: Søren Caspersen - Emil Buus Thomsen | E20: 10.56 | F20: 12.03 | G20: 11.75 | H20: 18.02 | I20: 11.93 | J20: 9 | K20: 16.78 | L20: 10.27 | M20: 12.44 | N20: 14.73 | O20: 13.32 | P20: 9.38 | Q20: 12.97 | R20: 11.33 | T20: =AVERAGE(E20:R20) -> 12.465 | U20: 2
A21: Niels Krøjgaard - Henrik Caspersen - H C Graversen | E21: 16.46 | F21: 6.68 | G21: 18.43 | H21: 4.72 | I21: 7.46 | J21: 11.42 | K21: 14.97 | L21: 8.32 | M21: 10.6 | N21: 15.49 | O21: 10.28 | P21: 13.49 | Q21: 10.27 | R21: 15.13 | T21: =AVERAGE(E21:R21) -> 11.69428571 | U21: 3
A23: Marlene Henneberg - J.O Henneberg | E23: 9.43 | F23: 12.26 | G23: 5.43 | H23: 9.18 | I23: 16.8 | J23: 12.83 | K23: 11.3 | L23: 5.52 | M23: 7.56 | N23: 4.51 | O23: 8.57 | P23: 13.54 | Q23: 12.78 | R23: 9.52 | T23: =AVERAGE(E23:R23) -> 9.945 | U23: 10
A24: Stig Andersen - Ricardo Mirasola | E24: 14.36 | F24: 8.97 | G24: 6.24 | H24: 9.04 | I24: 11.86 | J24: 12.17 | K24: 12.59 | L24: 10.6 | M24: 9.4 | N24: 5.27 | O24: 13.35 | P24: 4.89 | Q24: 3.28 | R24: 5.11 | T24: =AVERAGE(E24:R24) -> 9.080714286 | U24: 12
A26: Morten Bilde - Dorte Cilleborg | E26: 6.55 | F26: 6.45 | G26: 12.55 | H26: 10.5 | I26: 9.41 | J26: 14.18 | K26: 3.22 | L26: 11.68 | M26: 14.16 | N26: 7.92 | O26: 11.43 | P26: 15.11 | Q26: 19.46 | R26: 14.1 | T26: =AVERAGE(E26:R26) -> 11.19428571 | U26: 5
A27: Jørgen Cilleborg Hansen - Steen Schou | E27: 5.03 | F27: 17.84 | G27: 11.64 | H27: 15.29 | I27: 5.91 | J27: 15.5 | K27: 5.03 | L27: 9.73 | M27: 15.72 | N27: 13.3 | O27: 6.65 | P27: 6.46 | Q27: 16.37 | R27: 16.62 | T27: =AVERAGE(E27:R27) -> 11.50642857 | U27: 4

Sheet Imp Par
A1: IMP Par
B4: 1.aften | C4: 2.aften | D4: 3.aften | E4: 4.aften | F4: 5.aften | H4: Sum | I4: Placering
A6: Camilla Bo Krefeld - Johan Hammelev | B6: 154 | C6: 114 | D6: 277 | E6: 25 | F6: 143 | H6: =SUM(B6:F6) -> 713 | I6: 1
A7: Jørgen Cilleborg Hansen - Steen Schou | B7: -287 | C7: 246 | D7: 379 | E7: 109 | F7: 217 | H7: 664 | I7: 2
A8: Niels Krøjgaard - Henrik Caspersen - H C Graversen | B8: 135 | C8: 234.9 | D8: 120 | E8: 53 | F8: -20 | H8: 522.9 | I8: 3
A9: Morten Bilde - Dorte Cilleborg | B9: 116 | C9: -93 | D9: 47 | E9: 189 | F9: 98 | H9: 357 | I9: 4
A10: Tom Nørgaard - Trine Bilde - Peter Barsøe | B10: 460 | C10: -92 | D10: 38 | E10: -63 | F10: -65 | H10: 278 | I10: 5
A11: Marlene Henneberg - J.O Henneberg | B11: -50 | C11: -87 | D11: 202 | E11: 60 | F11: 51 | H11: 176 | I11: 6
A12: Emil Jepsen - Dennis Bilde | B12: 22 | C12: -18 | D12: -273 | E12: 170 | F12: 142 | H12: 43 | I12: 7
A13: Morten Stege - Nils Mønsted | B13: 32 | C13: 278.1 | D13: -284 | E13: 6 | F13: 4 | H13: 36.1 | I13: 8
A14: Lars Peter Damgaard - Jørgen Pabst | B14: -121 | C14: -169 | D14: 188 | E14: 72 | F14: -127 | H14: -157 | I14: 9
A15: Danny Hansen - Thomas Hahn | B15: 252 | C15: 72 | D15: -189 | E15: -113 | F15: -188 | H15: -166 | I15: 10
A16: H K Sørensen - Niels Henriksen | B16: -134 | C16: 42 | D16: 78 | E16: -72 | F16: -84 | H16: -170 | I16: 11
A17: Søren Caspersen - Emil Buus Thomsen | B17: -276 | C17: -86.9 | D17: -51 | E17: 85 | F17: 89 | H17: -239.9 | I17: 12
A18: Peter Jepsen - Søren Cilleborg Bilde - Maika | B18: -247 | C18: -56 | D18: -173 | E18: 174 | F18: 37 | H18: -265 | I18: 13
A19: Øjvind Hulgaard - Jesper Gad | B19: -23 | C19: -133.1 | D19: 74 | E19: -259 | F19: -118 | H19: -459.1 | I19: 14
A20: Stig Andersen - Ricardo Mirasola | B20: 294 | C20: -228 | D20: -300 | E20: -351 | F20: -44 | H20: -629 | I20: 15
A21: Jesper Bechsgaard - Anders Handberg Sørensen | B21: -327 | C21: -52 | D21: -133 | E21: -85 | F21: -135 | H21: -732 | I21: 16
B22: =SUM(B6:B21) -> 0 | C22: =SUM(C6:C21) -> -28 | D22: =SUM(D6:D21) -> 0 | E22: =SUM(E6:E21) -> 0 | F22: =SUM(F6:F21) -> 0 | H22: =SUM(H6:H21) -> -28

Sheet RR2
A1: Multi, RR2
E3: 1 | F3: 2 | G3: 3 | H3: 4 | I3: 5 | J3: 6 | K3: 7 | L3: 8 | M3: 9 | N3: 10 | O3: 11 | P3: 12 | Q3: 13 | R3: 14 | T3: Total | U3: Placering
A5: Emil Jepsen - Dennis Bilde | E5: 10.99 | F5: 13.76 | G5: 8.27 | H5: 15.07 | T5: =AVERAGE(E5:R5) -> 12.0225 | U5: 4
A6: Peter Jepsen - Søren Cilleborg Bilde - Maika | E6: 10.57 | F6: 6.68 | G6: 3.06 | H6: 4.9 | T6: =AVERAGE(E6:R6) -> 6.3025 | U6: 16
A8: Danny Hansen - Thomas Hahn | E8: 12.82 | F8: 3.24 | G8: 11.73 | H8: 15.1 | T8: =AVERAGE(E8:R8) -> 10.7225 | U8: 6
A9: Lars Peter Damgaard - Jørgen Pabst | E9: 7.08 | F9: 10.67 | G9: 16.94 | H9: 4.93 | T9: =AVERAGE(E9:R9) -> 9.905 | U9: 7
A11: Øjvind Hulgaard - Jesper Gad | E11: 16.49 | F11: 6.21 | G11: 8.81 | H11: 5.38 | T11: =AVERAGE(E11:R11) -> 9.2225 | U11: 9
A12: Jesper Bechsgaard - Anders Handberg Sørensen | E12: 11.7 | F12: 10.67 | G12: 7.04 | H12: 4.94 | T12: =AVERAGE(E12:R12) -> 8.5875 | U12: 13
A14: Marlene Henneberg - J.O Henneberg | E14: 10.02 | F14: 3.99 | G14: 4.22 | H14: 15.18 | T14: =AVERAGE(E14:R14) -> 8.3525 | U14: 15
A15: Stig Andersen - Ricardo Mirasola | E15: 9.48 | F15: 14.04 | G15: 3.19 | H15: 9.76 | T15: =AVERAGE(E15:R15) -> 9.1175 | U15: 10
A17: Søren Caspersen - Emil Buus Thomsen | E17: 9.98 | F17: 5.96 | G17: 8.8 | H17: 11.67 | T17: =AVERAGE(E17:R17) -> 9.1025 | U17: 11
A18: Niels Krøjgaard - Henrik Caspersen - H C Graversen | E18: 10.52 | F18: 16.01 | G18: 16.8 | H18: 7.36 | T18: =AVERAGE(E18:R18) -> 12.6725 | U18: 2
A20: Morten Bilde - Dorte Cilleborg | E20: 3.51 | F20: 9.33 | G20: 16.81 | H20: 4.82 | T20: =AVERAGE(E20:R20) -> 8.6175 | U20: 12
A21: Jørgen Cilleborg Hansen - Steen Schou | E21: 8.3 | F21: 13.79 | G21: 15.78 | H21: 10.24 | T21: =AVERAGE(E21:R21) -> 12.0275 | U21: 3
A23: Morten Stege - Nils Mønsted | E23: 7.18 | F23: 9.33 | G23: 12.96 | H23: 14.62 | T23: =AVERAGE(E23:R23) -> 11.0225 | U23: 5
A24: Camilla Bo Krefeld - Johan Hammelev | E24: 12.92 | F24: 16.76 | G24: 11.19 | H24: 15.06 | T24: =AVERAGE(E24:R24) -> 13.9825 | U24: 1
A26: H K Sørensen - Niels Henriksen | E26: 9.43 | F26: 6.24 | G26: 11.2 | H26: 12.64 | T26: =AVERAGE(E26:R26) -> 9.8775 | U26: 8
A27: Tom Nørgaard - Trine Bilde - Peter Barsøe | E27: 9.01 | F27: 13.32 | G27: 3.2 | H27: 8.33 | T27: =AVERAGE(E27:R27) -> 8.465 | U27: 14

Sheet Hold i alt
A1: Klub 32 - Hold 2019/2020
B5: RR1 | C5: RR2 | D5: Total | E5: Placering
A6: Emil Buus Thomsen | B6: 108.29 | C6: 24.8 | D6: =SUM(B6:C6) -> 133.09 | E6: 1
A7: Dorte Cilleborg | B7: 85.83 | C7: 21.36 | D7: =SUM(B7:C7) -> 107.19 | E7: 2
A8: Camilla Bo Krefeld | B8: 74.6 | C8: 31.45 | D8: =SUM(B8:C8) -> 106.05 | E8: 3
A9: Emil Jepsen | B9: 88.27 | C9: 14.36 | D9: =SUM(B9:C9) -> 102.63 | E9: 4
A10: H K Sørensen | B10: 76.19 | C10: 14.59 | D10: =SUM(B10:C10) -> 90.78 | E10: 5
A11: Ricardo Mirasola | B11: 62.86 | C11: 14.32 | D11: =SUM(B11:C11) -> 77.18 | E11: 6
A12: Danny Hansen | B12: 30.08 | C12: 23.17 | D12: =SUM(B12:C12) -> 53.25 | E12: 7
A13: Abders Handberg | B13: 33.88 | C13: 15.95 | D13: =SUM(B13:C13) -> 49.83 | E13: 8

Sheet Slutspil
A1: SLUTSPIL
E3: 1 | F3: 2 | G3: 3 | H3: 4 | I3: 5 | J3: 6 | K3: 7 | L3: 8 | N3: Total | O3: Placering
A5: Jesper Bechsgaard - Lars Ugilt | N5: =AVERAGE(E5:L5) ->  | O5: 12
A6: Danny Hansen - Thomas Hahn | N6: =AVERAGE(E6:L6) ->  | O6: 11
A8: Emil Jepsen - Morten Bilde | N8: =AVERAGE(E8:L8) ->  | O8: 10
A9: Marlene Henneberg - J.O Henneberg | N9: =AVERAGE(E9:L9) ->  | O9: 13
A11: Lars Peter Damgaard - Jan Pedersen - Jørgen Pabst | N11: =AVERAGE(E11:L11) ->  | O11: 14
A12: Niels Krøjgaard - Mads Krøjgaard | N12: =AVERAGE(E12:L12) ->  | O12: 3
A14: Jørgen Cilleborg Hansen - Steen Schou | N14: =AVERAGE(E14:L14) ->  | O14: 1
A15: Peter Jepsen - Søren Cilleborg Bilde | N15: =AVERAGE(E15:L15) ->  | O15: 5
A17: Camilla Bo Krefeld - Johan Hammelev | N17: =AVERAGE(E17:L17) ->  | O17: 7
A18: Morten Stege - Nils Mønsted | N18: =AVERAGE(E18:L18) ->  | O18: 2
A20: Henrik Caspersen - Søren Caspersen | N20: =AVERAGE(E20:L20) ->  | O20: 6
A21: Johanne Bilde Kofoed - Jens Kofoed | N21: =AVERAGE(E21:L21) ->  | O21: 4
A23: Øjvind Hulgaard - Jesper Gad | N23: =AVERAGE(E23:L23) ->  | O23: 16
A24: Benny Marquart - Keld Grann | N24: =AVERAGE(E24:L24) ->  | O24: 9
A26: Tom Nørgaard - Trine Bilde - Peter Barsøe | N26: =AVERAGE(E26:L26) ->  | O26: 8
A27: H K Sørensen - Niels Henriksen | N27: =AVERAGE(E27:L27) ->  | O27: 15

Sheet Par
A1: Par
B3: 1.aften | C3: 2.aften | D3: 3.aften | E3: 4.aften | F3: 5.aften | H3: Sum | I3: Placering
A5: Morten Stege - Nils Mønsted | H5: =SUM(B5:G5) -> 0 | I5: 1
A6: Peter Jepsen - Søren Cilleborg Bilde | H6: =SUM(B6:F6) -> 0 | I6: 2
A7: Marlene Henneberg - J.O Henneberg | H7: =SUM(B7:F7) -> 0 | I7: 3
A8: Jørgen Cilleborg Hansen - Steen Schou | H8: =SUM(B8:G8) -> 0 | I8: 4
A9: Niels Krøjgaard - Mads Krøjgaard | H9: =SUM(B9:G9) -> 0 | I9: 5
A10: Henrik Caspersen - Søren Caspersen | H10: =SUM(B10:F10) -> 0 | I10: 6
A11: Benny Marquart - Keld Grann | H11: =SUM(B11:G11) -> 0 | I11: 7
A12: Camilla Bo Krefeld - Johan Hammelev | H12: =SUM(B12:G12) -> 0 | I12: 8
A13: Jesper Bechsgaard - Lars Ugilt | H13: =SUM(B13:F13) -> 0 | I13: 9
A14: Johanne Bilde Kofoed - Jens Kofoed | H14: =SUM(B14:F14) -> 0 | I14: 10
A15: Tom Nørgaard - Trine Bilde - Peter Barsøe | H15: =SUM(B15:G15) -> 0 | I15: 11
A16: Øjvind Hulgaard - Jesper Gad | H16: =SUM(B16:F16) -> 0 | I16: 12
A17: H K Sørensen - Niels Henriksen | H17: =SUM(B17:F17) -> 0 | I17: 13
A18: Emil Jepsen - Morten Bilde | H18: =SUM(B18:G18) -> 0 | I18: 14
A19: Danny Hansen - Thomas Hahn | H19: =SUM(B19:G19) -> 0 | I19: 15
A20: Lars Peter Damgaard - Jan Pedersen - Jørgen Pabst | H20: =SUM(B20:F20) -> 0 | I20: 16
B21: =SUM(B5:B20) -> 0 | C21: =SUM(C5:C20) -> 0 | D21: =SUM(D5:D20) -> 0 | E21: =SUM(E5:E20) -> 0 | F21: =SUM(F5:F20) -> 0 | H21: =SUM(H5:H20) -> 0

Sheet Grand prix
A1: Grand prix klub 32 (2019-2020)
F3: Intro hold | G3: RR 1 | H3: IMP1 | I3: RR2 | J3: Slutspil | K3: Par | M3: Total | O3: Placering
A5: Niels Krøjgaard - Henrik Caspersen - H C Graversen | F5: =Intro!X21*4 -> 8 | G5: ='RR1'!U21*7 -> 21 | H5: ='Imp Par'!I8*5 -> 15 | I5: ='RR2'!U18*7 -> 14 | M5: =SUM(F5:L5) -> 58 | O5: 1
A6: Emil Jepsen - Dennis Bilde | F6: =Intro!X6*4 -> 4 | G6: ='RR1'!U17*7 -> 7 | H6: ='Imp Par'!I12*5 -> 35 | I6: ='RR2'!U5*7 -> 28 | M6: =SUM(F6:L6) -> 74 | O6: 2
A7: Jørgen Cilleborg Hansen - Steen Schou | F7: =Intro!X17*4 -> 16 | G7: ='RR1'!U27*7 -> 28 | H7: ='Imp Par'!I7*5 -> 10 | I7: ='RR2'!U21*7 -> 21 | M7: =SUM(F7:L7) -> 75 | O7: 3
A8: Camilla Bo Krefeld - Johan Hammelev | F8: =Intro!X9*4 -> 28 | G8: ='RR1'!U6*7 -> 63 | H8: ='Imp Par'!I6*5 -> 5 | I8: ='RR2'!U24*7 -> 7 | M8: =SUM(F8:L8) -> 103 | O8: 4
A9: Morten Stege - Nils Mønsted | F9: =Intro!X14*4 -> 44 | G9: ='RR1'!U5*7 -> 56 | H9: ='Imp Par'!I13*5 -> 40 | I9: ='RR2'!U23*7 -> 35 | M9: =SUM(F9:L9) -> 175 | O9: 5
A10: Morten Bilde - Dorte Cilleborg | F10: =Intro!X24*4 -> 40 | G10: ='RR1'!U26*7 -> 35 | H10: ='Imp Par'!I9*5 -> 20 | I10: ='RR2'!U20*7 -> 84 | M10: =SUM(F10:L10) -> 179 | O10: 6
A11: H K Sørensen - Niels Henriksen | F11: =Intro!X23*4 -> 24 | G11: ='RR1'!U11*7 -> 49 | H11: ='Imp Par'!I16*5 -> 55 | I11: ='RR2'!U26*7 -> 56 | M11: =SUM(F11:L11) -> 184 | O11: 7
A12: Søren Caspersen - Emil Buus Thomsen | F12: =Intro!X26*4 -> 48 | G12: ='RR1'!U20*7 -> 14 | H12: ='Imp Par'!I17*5 -> 60 | I12: ='RR2'!U17*7 -> 77 | M12: =SUM(F12:L12) -> 199 | O12: 8
A13: Lars Peter Damgaard - Jørgen Pabst | F13: =Intro!X8*4 -> 20 | G13: ='RR1'!U15*7 -> 91 | H13: ='Imp Par'!I14*5 -> 45 | I13: ='RR2'!U9*7 -> 49 | M13: =SUM(F13:L13) -> 205 | O13: 9
A14: Tom Nørgaard - Trine Bilde - Peter Barsøe | F14: =Intro!X12*4 -> 56 | G14: ='RR1'!U12*7 -> 42 | H14: ='Imp Par'!I10*5 -> 25 | I14: ='RR2'!U27*7 -> 98 | M14: =SUM(F14:L14) -> 221 | O14: 10
A15: Stig Andersen - Ricardo Mirasola | F15: =Intro!X15*4 -> 12 | G15: ='RR1'!U24*7 -> 84 | H15: ='Imp Par'!I20*5 -> 75 | I15: ='RR2'!U15*7 -> 70 | M15: =SUM(F15:L15) -> 241 | O15: 11
A16: Marlene Henneberg - J.O Henneberg | F16: =Intro!X18*4 -> 52 | G16: ='RR1'!U23*7 -> 70 | H16: ='Imp Par'!I11*5 -> 30 | I16: ='RR2'!U14*7 -> 105 | M16: =SUM(F16:L16) -> 257 | O16: 12
A17: Øjvind Hulgaard - Jesper Gad | F17: =Intro!X20*4 -> 32 | G17: ='RR1'!U8*7 -> 98 | H17: ='Imp Par'!I19*5 -> 70 | I17: ='RR2'!U11*7 -> 63 | M17: =SUM(F17:L17) -> 263 | O17: 13
A18: Danny Hansen - Thomas Hahn | F18: =Intro!X5*4 -> 60 | G18: ='RR1'!U14*7 -> 112 | H18: ='Imp Par'!I15*5 -> 50 | I18: ='RR2'!U8*7 -> 42 | M18: =SUM(F18:L18) -> 264 | O18: 14
A19: Peter Jepsen - Søren Cilleborg Bilde - Maika | F19: =Intro!X27*4 -> 36 | G19: ='RR1'!U18*7 -> 77 | H19: ='Imp Par'!I18*5 -> 65 | I19: ='RR2'!U6*7 -> 112 | M19: =SUM(F19:L19) -> 290 | O19: 15
A20: Jesper Bechsgaard - Anders Handberg Sørensen | F20: =Intro!X11*4 -> 64 | G20: ='RR1'!U9*7 -> 105 | H20: ='Imp Par'!I21*5 -> 80 | I20: ='RR2'!U12*7 -> 91 | M20: =SUM(F20:L20) -> 340 | O20: 16

Sheet Fremmøde
A1: Fremmøde som samlet par
B3: Introhold | C3: RR1 | D3: Imp | E3: RR2 | F3: Slut | G3: par | I3: Fremmøde% | K3: Fremmøde/antal
A4: Aftener: | B4: 4 | C4: 7 | D4: 5 | E4: 7 | F4: 4 | G4: 5 | K4: 18
B5: Fremmøde
A6: Tom Nørgaard - Trine Bilde - Peter Barsøe | B6: 4 | C6: 7 | D6: 5 | E6: 2 | I6: =SUM(B6:G6)/$K$4% -> 100 | K6: =SUM(B6:G6) -> 18
A7: Morten Stege - Nils Mønsted | B7: 4 | C7: 7 | D7: 4 | E7: 2 | I7: =SUM(B7:G7)/$K$4% -> 94.44444444 | K7: =SUM(B7:G7) -> 17
A8: Niels Krøjgaard - Henrik Caspersen - H C Graversen | B8: 3 | C8: 7 | D8: 5 | E8: 2 | I8: =SUM(B8:G8)/$K$4% -> 94.44444444 | K8: =SUM(B8:G8) -> 17
A9: Peter Jepsen - Søren Cilleborg Bilde - Maika | B9: 4 | C9: 7 | D9: 5 | E9: 0 | I9: =SUM(B9:G9)/$K$4% -> 88.88888889 | K9: =SUM(B9:G9) -> 16
A10: Lars Peter Damgaard - Jørgen Pabst | B10: 4 | C10: 6 | D10: 5 | E10: 1 | I10: =SUM(B10:G10)/$K$4% -> 88.88888889 | K10: =SUM(B10:G10) -> 16
A11: Stig Andersen - Ricardo Mirasola | B11: 3 | C11: 6 | D11: 5 | E11: 2 | I11: =SUM(B11:G11)/$K$4% -> 88.88888889 | K11: =SUM(B11:G11) -> 16
A12: H K Sørensen - Niels Henriksen | B12: 3 | C12: 6 | D12: 4 | E12: 2 | I12: =SUM(B12:G12)/$K$4% -> 83.33333333 | K12: =SUM(B12:G12) -> 15
A13: Marlene Henneberg - J.O Henneberg | B13: 3 | C13: 6 | D13: 4 | E13: 2 | I13: =SUM(B13:G13)/$K$4% -> 83.33333333 | K13: =SUM(B13:G13) -> 15
A14: Danny Hansen - Thomas Hahn | B14: 4 | C14: 4 | D14: 5 | E14: 2 | I14: =SUM(B14:G14)/$K$4% -> 83.33333333 | K14: =SUM(B14:G14) -> 15
A15: Camilla Bo Krefeld - Johan Hammelev | B15: 1 | C15: 7 | D15: 5 | E15: 2 | I15: =SUM(B15:G15)/$K$4% -> 83.33333333 | K15: =SUM(B15:G15) -> 15
A16: Øjvind Hulgaard - Jesper Gad | B16: 2 | C16: 7 | D16: 3 | E16: 2 | I16: =SUM(B16:G16)/$K$4% -> 77.77777778 | K16: =SUM(B16:G16) -> 14
A17: Søren Caspersen - Emil Buus Thomsen | B17: 3 | C17: 6 | D17: 3 | E17: 2 | I17: =SUM(B17:G17)/$K$4% -> 77.77777778 | K17: =SUM(B17:G17) -> 14
A18: Morten Bilde - Dorte Cilleborg | B18: 4 | C18: 3 | D18: 4 | E18: 2 | I18: =SUM(B18:G18)/$K$4% -> 72.22222222 | K18: =SUM(B18:G18) -> 13
A19: Emil Jepsen - Dennis Bilde | B19: 3 | C19: 5 | D19: 2 | E19: 1 | I19: =SUM(B19:G19)/$K$4% -> 61.11111111 | K19: =SUM(B19:G19) -> 11
A20: Jørgen Cilleborg Hansen - Steen Schou | B20: 0 | C20: 7 | D20: 2 | E20: 2 | I20: =SUM(B20:G20)/$K$4% -> 61.11111111 | K20: =SUM(B20:G20) -> 11
A21: Jesper Bechsgaard - Anders Handberg Sørensen | B21: 3 | C21: 3 | D21: 3 | E21: 2 | I21: =SUM(B21:G21)/$K$4% -> 61.11111111 | K21: =SUM(B21:G21) -> 11
